bitfinex/quotes_ETHUSD_20240701
["timestamp","ask_amount","ask_price","bid_price","bid_amount"]
[1719828946588,8.6801209,3482.3,3482.2,2.7e-06]
[1719828949862,9.4881209,3482.3,3482.2,2.7e-06]
[1719828953057,8.6801209,3482.3,3482.2,2.7e-06]
[1719828962975,5.8084609,3482.3,3482.2,2.7e-06]
[1719828964723,2.9368009,3482.3,3482.2,2.7e-06]
[1719828964885,2.9368009,3482.3,3482.2,2.50661297]
[1719828967422,2.9368009,3482.3,3482.2,2.50661297]
[1719828968120,2.87166,3482.3,3482.2,2.50661297]
[1719828968497,2.92271814,3482.3,3482.2,2.50661297]
[1719828969246,2.94349786,3482.3,3482.2,2.50661297]
[1719828969912,2.94349786,3482.3,3482.2,2.2789027]
[1719828970306,5.81515786,3482.3,3482.2,2.7e-06]
[1719828970530,8.68681786,3482.3,3482.2,2.7e-06]
[1719828970895,5.81515786,3482.3,3482.2,2.7e-06]
[1719828971433,8.68681786,3482.3,3482.2,2.7e-06]
[1719828974721,5.81515786,3482.3,3482.2,2.7e-06]
[1719828976599,8.68681786,3482.3,3482.2,2.7e-06]
[1719828977015,5.81515786,3482.3,3482.2,2.7e-06]
[1719828986813,5.79437814,3482.3,3482.2,2.7e-06]
[1719828998786,0.05105814,3482.3,3482.2,2.7e-06]
[1719828998914,0.05105814,3482.3,3482.2,6.1112427]
[1719828999279,2.87117,3482.9,3482.3,2.4315]
[1719828999552,2.87117,3482.9,3482.6,0.808]
[1719828999721,0.04604722,3482.8,3482.6,0.808]
[1719828999931,2.91729722,3482.8,3482.6,0.808]
[1719829001942,0.02077972,3482.7,3482.3,2.4111]
[1719829002273,2.87152,3482.5,3482.4,0.33151659]
[1719829002622,2.91719479,3482.5,3482.4,0.33151659]
[1719829003852,0.04567479,3482.5,3482.4,0.33151659]
[1719829004074,0.04567479,3482.5,3482.4,5.50499659]
[1719829004368,2.87092,3483.2,3482.6,2.2519]
[1719829004534,2.87092,3483.2,3483.0,0.808]
[1719829004733,0.04287715,3483.1,3483.0,0.808]
[1719829004962,2.91387715,3483.1,3483.0,0.808]
[1719829005434,2.91387715,3483.1,3482.8,0.808]
[1719829007991,2.87117,3482.9,3482.7,0.55123183]
[1719829008173,2.87117,3482.9,3482.7,0.808]
[1719829008321,0.04230909,3482.8,3482.7,0.808]
[1719829008523,2.87117,3482.9,3482.7,0.808]
[1719829008739,0.04230909,3482.8,3482.4,2.58461659]
[1719829008985,2.87117,3482.9,3482.5,0.808]
[1719829009282,2.87139,3482.7,3482.5,1.96966825]
[1719829009560,2.91360406,3482.6,3482.5,1.16166825]
[1719829009860,2.87158,3482.4,3482.3,7.32]
[1719829010060,2.87158,3482.4,3482.2,1.7120659]
[1719829010357,2.87158,3482.4,3482.2,0.8080027]
[1719829010571,2.87145,3482.6,3482.2,0.8080027]
[1719829010737,2.87145,3482.6,3482.4,0.808]
[1719829011059,0.04213655,3482.5,3482.4,0.808]
[1719829019867,0.04213655,3482.5,3482.4,3.2855]
[1719829020042,0.04213655,3482.5,3482.4,3.90695735]
[1719829020246,0.02077972,3483.1,3482.4,3.90695735]
[1719829020247,2.87117,3482.9,3482.4,3.90695735]
[1719829020469,0.04205398,3482.5,3482.4,3.90695735]
[1719829020663,2.87117,3482.9,3482.4,3.90695735]
[1719829020864,0.04205398,3482.5,3482.4,3.90695735]
[1719829021394,2.87117,3482.9,3482.4,3.90695735]
[1719829021600,0.04205398,3482.5,3482.4,3.90695735]
[1719829021913,2.87117,3482.9,3482.4,3.90695735]
[1719829022346,0.04222653,3482.8,3482.4,3.90695735]
[1719829022763,0.04222653,3482.8,3482.6,0.808]
[1719829023644,2.87109,3483.0,3482.6,0.808]
[1719829023845,0.04216902,3482.7,3482.6,0.808]
[1719829024075,2.87109,3483.0,3482.6,0.808]
[1719829024548,0.04230432,3482.9,3482.6,0.808]
[1719829024876,0.04230432,3482.9,3482.6,1.49159535]
[1719829025651,2.91347432,3482.9,3482.6,0.68359535]
[1719829025961,2.87127,3482.8,3482.5,0.808]
[1719829026268,2.87141,3482.6,3482.4,0.808]
[1719829026586,0.04207426,3482.5,3482.4,0.808]
[1719829032165,2.87141,3482.6,3482.4,0.808]
[1719829032873,2.8715,3482.5,3482.2,2.7e-06]
[1719829033058,2.89240972,3482.4,3482.2,2.7e-06]
[1719829033253,2.91368927,3482.4,3482.2,2.7e-06]
[1719829033586,2.89243972,3482.3,3482.2,2.7e-06]
[1719829033962,2.93444146,3482.3,3482.2,2.7e-06]
[1719829034485,2.91366174,3482.3,3482.2,2.7e-06]
[1719829041794,0.04200174,3482.3,3482.2,2.7e-06]
[1719829041997,0.04200174,3482.3,3482.2,0.32872636]
[1719829044458,0.04200174,3482.3,3482.2,2.7e-06]
[1719829045423,2.8715,3482.5,3482.2,2.7e-06]
[1719829045570,0.04047422,3482.3,3482.2,2.7e-06]
[1719829045927,2.8715,3482.5,3482.2,2.7e-06]
[1719829046217,0.04047422,3482.3,3482.2,0.8080027]
[1719829046411,2.87159,3482.4,3482.2,0.8080027]
[1719829046564,0.04047422,3482.3,3482.2,0.8080027]
[1719829050418,0.04047422,3482.3,3482.2,1.13727297]
[1719829052090,2.87151,3482.5,3482.2,1.13727297]
[1719829052404,2.87151,3482.5,3482.4,0.808]
[1719829054226,2.91213113,3482.5,3482.4,0.808]
[1719829055822,2.91213113,3482.5,3482.2,2.7e-06]
[1719829055823,2.91213113,3482.5,3482.2,0.8080027]
[1719829068198,2.87159,3482.4,3482.2,0.8080027]
[1719829068401,0.04051698,3482.3,3482.2,0.8080027]
[1719829073047,0.04051698,3482.3,3482.2,3.6797427]
[1719829073215,0.04051698,3482.3,3482.2,4.57056997]
[1719829073412,2.4187,3482.9,3482.2,4.57056997]
[1719829073649,2.4187,3482.9,3482.4,0.808]
[1719829073952,0.04077065,3482.8,3482.4,0.808]
[1719829074850,2.91206065,3482.8,3482.4,0.808]
[1719829075152,2.87139,3482.7,3482.4,0.808]
[1719829075645,0.04068748,3482.6,3482.4,0.808]
[1719829076956,0.04068748,3482.6,3482.4,1.500735]
[1719829077321,5.28992,3482.9,3482.4,1.500735]
[1719829077516,0.04043883,3482.5,3482.4,0.808]
[1719829077722,2.87126,3482.8,3482.4,0.808]
[1719829078250,0.04055387,3482.7,3482.4,0.808]
[1719829078624,2.87126,3482.8,3482.4,0.808]
[1719829078836,0.04049635,3482.6,3482.4,0.808]
[1719829079023,2.87126,3482.8,3482.4,1.500735]
[1719829079230,0.04043883,3482.5,3482.4,1.500735]
[1719829079431,2.87126,3482.8,3482.4,1.500735]
[1719829079657,0.04043883,3482.5,3482.4,0.808]
[1719829079951,2.87126,3482.8,3482.4,0.808]
[1719829080160,0.04043883,3482.5,3482.4,0.808]
[1719829080345,2.87134,3482.7,3482.4,0.808]
[1719829080542,0.04043883,3482.5,3482.2,2.7e-06]
[1719829080718,2.87158,3482.4,3482.3,0.808]
[1719829080923,2.9119613,3482.4,3482.3,0.808]
[1719829083528,2.9119613,3482.4,3482.2,2.7e-06]
[1719829083529,2.87166,3482.3,3482.2,2.7e-06]
[1719829083759,6.2763121,3482.3,3482.2,2.7e-06]
[1719829084058,8.60595002,3482.3,3482.2,2.7e-06]
[1719829084624,8.07295792,3482.3,3482.2,2.7e-06]
[1719829089561,2.91239792,3482.3,3482.2,2.7e-06]
[1719829095367,5.39489792,3482.3,3482.2,2.7e-06]
[1719829095569,8.26655792,3482.3,3482.2,2.7e-06]
[1719829096266,8.09005792,3482.3,3482.2,2.7e-06]
[1719829096471,12.26701671,3482.3,3482.2,2.7e-06]
[1719829097979,15.13867671,3482.3,3482.2,2.7e-06]
[1719829105742,12.26701671,3482.3,3482.2,2.7e-06]
[1719829125287,11.09005792,3482.3,3482.2,2.7e-06]
[1719829127810,14.76971792,3482.3,3482.2,2.7e-06]
[1719829128188,17.64137792,3482.3,3482.2,2.7e-06]
[1719829128486,17.94080036,3482.3,3482.2,2.7e-06]
[1719829129209,15.06914036,3482.3,3482.2,2.7e-06]
[1719829129431,17.94080036,3482.3,3482.2,2.7e-06]
[1719829131413,15.06914036,3482.3,3482.2,2.7e-06]
[1719829131612,17.94080036,3482.3,3482.2,2.7e-06]
[1719829132807,14.26114036,3482.3,3482.2,2.7e-06]
[1719829133012,15.06914036,3482.3,3482.2,2.7e-06]
[1719829134382,17.94080036,3482.3,3482.2,2.7e-06]
[1719829135494,15.06914036,3482.3,3482.2,2.7e-06]
[1719829135701,17.94080036,3482.3,3482.2,2.7e-06]
[1719829135904,15.06914036,3482.3,3482.2,2.7e-06]
[1719829142005,17.94080036,3482.3,3482.2,2.7e-06]
[1719829145521,20.81246036,3482.3,3482.2,2.7e-06]
[1719829146139,21.62305839,3482.3,3482.2,2.7e-06]
[1719829147309,56.53343139,3482.3,3482.2,2.7e-06]
[1719829147508,36.67163739,3482.3,3481.1,0.68892115]
[1719829147747,8.61846,3480.9,3480.8,6.7e-06]
[1719829148040,11.61846,3480.9,3480.8,6.7e-06]
[1719829148269,11.65808822,3480.9,3480.8,6.7e-06]
[1719829160185,8.78526822,3480.9,3480.8,6.7e-06]
[1719829175457,8.78526822,3480.9,3480.8,6.7e-06]
[1719829181587,11.65808822,3480.9,3480.8,6.7e-06]
[1719829181991,8.78526822,3480.9,3480.8,6.7e-06]
[1719829182212,11.65808822,3480.9,3480.8,6.7e-06]
[1719829182559,8.78526822,3480.9,3480.8,6.7e-06]
[1719829187363,0.03962822,3480.9,3480.8,6.7e-06]
[1719829187597,2.87276,3481.0,3480.8,0.59923037]
[1719829187764,0.03444452,3480.9,3480.8,6.7e-06]
[1719829189001,2.90726452,3480.9,3480.8,6.7e-06]
[1719829196481,0.03444452,3480.9,3480.8,6.7e-06]
[1719829201587,2.90726452,3480.9,3480.8,6.7e-06]
[1719829208295,0.03444452,3480.9,3480.8,0.8080067]
[1719829208528,2.87253,3481.3,3480.8,1.41296102]
[1719829208729,2.87253,3481.3,3481.0,0.808]
[1719829208952,0.03237966,3481.2,3481.0,0.808]
[1719829209158,2.87253,3481.3,3481.0,0.808]
[1719829209361,0.03238228,3481.2,3481.0,0.808]
[1719829209638,2.87253,3481.3,3481.0,0.808]
[1719829209801,0.03232473,3481.1,3481.0,0.808]
[1719829210001,0.03232473,3481.1,3480.8,6.7e-06]
[1719829210002,0.03232473,3481.1,3480.8,0.8080067]
[1719829210818,2.90497473,3481.1,3480.8,0.8080067]
[1719829211462,2.87273,3481.0,3480.8,0.8080067]
[1719829211749,0.03220962,3480.9,3480.8,0.8080067]
[1719829212581,2.87282,3480.9,3480.8,6.7e-06]
[1719829212745,2.90502962,3480.9,3480.8,6.7e-06]
[1719829215433,5.77784962,3480.9,3480.8,6.7e-06]
[1719829216731,2.90502962,3480.9,3480.8,6.7e-06]
[1719829218545,0.03220962,3480.9,3480.8,6.7e-06]
[1719829218750,2.87274,3481.0,3480.8,6.7e-06]
[1719829218971,0.03218956,3480.9,3480.8,6.7e-06]
[1719829222280,2.90500956,3480.9,3480.8,6.7e-06]
[1719829229417,0.03218956,3480.9,3480.8,6.7e-06]
[1719829229706,2.87274,3481.0,3480.8,6.7e-06]
[1719829229992,0.03218956,3480.9,3480.8,6.7e-06]
[1719829230753,2.90500956,3480.9,3480.8,6.7e-06]
[1719829231762,2.94444331,3480.9,3480.8,6.7e-06]
[1719829246373,2.96522303,3480.9,3480.8,6.7e-06]
[1719829247266,6.42183933,3480.9,3480.8,6.7e-06]
[1719829247469,8.68423933,3480.9,3480.8,6.7e-06]
[1719829257443,8.10044303,3480.9,3480.8,6.7e-06]
[1719829259215,5.83804303,3480.9,3480.8,6.7e-06]
[1719829259412,2.94444331,3480.9,3480.8,6.7e-06]
[1719829260919,8.71086303,3480.9,3480.8,6.7e-06]
[1719829261529,5.83804303,3480.9,3480.8,6.7e-06]
[1719829261730,6.94995233,3480.9,3480.8,6.7e-06]
[1719829262042,5.83804303,3480.9,3480.8,6.7e-06]
[1719829263408,0.07162331,3480.9,3480.8,6.7e-06]
[1719829263607,2.94444331,3480.9,3480.8,6.7e-06]
[1719829264824,2.96522303,3480.9,3480.8,6.7e-06]
[1719829265214,2.94444331,3480.9,3480.8,6.7e-06]
[1719829267536,2.96522303,3480.9,3480.8,6.7e-06]
[1719829268643,0.07162331,3480.9,3480.8,6.7e-06]
[1719829268848,3.0,3481.0,3480.8,6.7e-06]
[1719829269037,0.07082882,3480.9,3480.8,6.7e-06]
[1719829269757,5.83724854,3480.9,3480.8,6.7e-06]
[1719829269911,9.19117339,3480.9,3480.8,6.7e-06]
[1719829273361,8.30744854,3480.9,3480.8,6.7e-06]
[1719829276257,11.98826854,3480.9,3480.8,6.7e-06]
[1719829276465,15.741709,3480.9,3480.8,6.7e-06]
[1719829276757,16.0407783,3480.9,3480.8,6.7e-06]
[1719829277253,18.9135983,3480.9,3480.8,6.7e-06]
[1719829283850,18.16015784,3480.9,3480.8,6.7e-06]
[1719829289580,12.00913784,3480.9,3480.8,6.7e-06]
[1719829289780,14.50043784,3480.9,3480.8,6.7e-06]
[1719829289942,15.2538783,3480.9,3480.8,6.7e-06]
[1719829293266,18.1266983,3480.9,3480.8,6.7e-06]
[1719829297389,18.6766983,3480.9,3480.8,6.7e-06]
[1719829300181,19.4846983,3480.9,3480.8,6.7e-06]
[1719829309606,19.47493922,3480.9,3480.8,6.7e-06]
[1719829310801,18.66693922,3480.9,3480.8,6.7e-06]
[1719829311005,19.47493922,3480.9,3480.8,6.7e-06]
[1719829312477,18.66693922,3480.9,3480.8,6.7e-06]
[1719829312679,19.47493922,3480.9,3480.8,6.7e-06]
[1719829317401,22.34775922,3480.9,3480.8,6.7e-06]
[1719829319851,22.60815049,3480.9,3480.8,6.7e-06]
[1719829321641,23.2439053,3480.9,3480.8,6.7e-06]
[1719829322241,46.5721633,3480.9,3480.8,6.7e-06]
[1719829322542,53.92992561,3480.9,3480.8,6.7e-06]
[1719829323427,43.24862461,3480.9,3480.8,6.7e-06]
[1719829324011,39.00275957,3480.9,3480.8,6.7e-06]
[1719829324407,39.0027594,3480.9,3480.8,6.7e-06]
[1719829324971,39.00276082,3480.9,3480.8,6.7e-06]
[1719829325556,43.53276082,3480.9,3480.8,6.7e-06]
[1719829325875,27.48006182,3480.9,3480.8,6.7e-06]
[1719829326022,59.79096882,3480.9,3480.8,6.7e-06]
[1719829326227,59.7701891,3480.9,3480.8,6.7e-06]
[1719829326535,42.9516591,3480.9,3480.8,6.7e-06]
[1719829326864,42.2016591,3480.9,3480.8,6.7e-06]
[1719829327004,41.5657415,3480.9,3480.8,6.7e-06]
[1719829327206,41.29446814,3480.9,3480.8,6.7e-06]
[1719829329041,41.29445403,3480.9,3480.8,6.7e-06]
[1719829330445,41.29445859,3480.9,3480.8,6.7e-06]
[1719829333429,41.294276,3480.9,3480.8,6.7e-06]
[1719829333880,40.65845382,3480.9,3480.8,6.7e-06]
[1719829334023,41.29418786,3480.9,3480.8,6.7e-06]
[1719829334380,40.54418786,3480.9,3480.8,6.7e-06]
[1719829334653,23.48493555,3480.9,3480.8,6.7e-06]
[1719829335345,22.84920151,3480.9,3480.8,6.7e-06]
[1719829335946,20.09597951,3480.9,3480.8,6.7e-06]
[1719829346537,13.54233951,3480.9,3480.8,6.7e-06]
[1719829346724,8.97859904,3480.9,3480.8,2.4476067]
[1719829346926,8.67952974,3480.9,3480.8,2.69236737]
[1719829347123,9.48752974,3480.9,3480.8,2.69236737]
[1719829347452,9.48752974,3480.9,3480.8,2.4476067]
[1719829347943,12.48752974,3480.9,3480.8,2.4476067]
[1719829353069,15.36034974,3480.9,3480.8,2.4476067]
[1719829353469,12.48752974,3480.9,3480.8,2.4476067]
[1719829354646,15.36034974,3480.9,3480.8,2.4476067]
[1719829354973,12.48752974,3480.9,3480.8,6.7e-06]
[1719829355171,15.36034974,3480.9,3480.8,6.7e-06]
[1719829355371,12.48752974,3480.9,3480.8,6.7e-06]
[1719829355532,15.36034974,3480.9,3480.8,6.7e-06]
[1719829358959,16.20935846,3480.9,3480.8,6.7e-06]
[1719829362798,15.40135846,3480.9,3480.8,6.7e-06]
[1719829363092,16.20935846,3480.9,3480.8,6.7e-06]
[1719829380387,16.46971975,3480.9,3480.8,6.7e-06]
[1719829386009,16.46971602,3480.9,3480.8,6.7e-06]
[1719829388220,21.78543602,3480.9,3480.8,6.7e-06]
[1719829388407,23.28019585,3480.9,3480.8,6.7e-06]
[1719829388607,46.98218885,3480.9,3480.8,6.7e-06]
[1719829388847,45.14543985,3480.9,3480.8,6.7e-06]
[1719829390125,44.50988854,3480.9,3480.8,6.7e-06]
[1719829390331,41.73242244,3480.9,3480.8,6.7e-06]
[1719829391825,41.14903444,3480.9,3480.8,6.7e-06]
[1719829393568,40.48896654,3480.9,3480.8,6.7e-06]
[1719829393752,41.14902399,3480.9,3480.8,6.7e-06]
[1719829394165,41.14896638,3480.9,3480.8,6.7e-06]
[1719829394541,23.30464438,3480.9,3480.8,6.7e-06]
[1719829394742,37.28609838,3480.9,3480.8,6.7e-06]
[1719829395763,35.61607138,3480.9,3480.8,6.7e-06]
[1719829396637,35.61607052,3480.9,3480.8,6.7e-06]
[1719829397154,35.6160723,3480.9,3480.8,6.7e-06]
[1719829399779,35.61606904,3480.9,3480.8,6.7e-06]
[1719829401690,39.39606904,3480.9,3480.8,6.7e-06]
[1719829402999,39.39612342,3480.9,3480.8,6.7e-06]
[1719829405468,39.39611373,3480.9,3480.8,6.7e-06]
[1719829406188,38.73600424,3480.9,3480.8,6.7e-06]
[1719829406392,39.39609535,3480.9,3480.8,6.7e-06]
[1719829408105,59.39557535,3480.9,3480.8,6.7e-06]
[1719829409467,59.39556505,3480.9,3480.8,6.7e-06]
[1719829409888,58.73548424,3480.9,3480.8,6.7e-06]
[1719829410097,59.39555582,3480.9,3480.8,6.7e-06]
[1719829412595,58.73548424,3480.9,3480.8,6.7e-06]
[1719829412794,59.39556724,3480.9,3480.8,6.7e-06]
[1719829413593,58.64556724,3480.9,3480.8,6.7e-06]
[1719829413785,59.39556724,3480.9,3480.8,6.7e-06]
[1719829415903,58.73548424,3480.9,3480.8,6.7e-06]
[1719829416202,59.39557026,3480.9,3480.8,6.7e-06]
[1719829418502,60.39117683,3480.9,3480.8,6.7e-06]
[1719829419071,60.39118994,3480.9,3480.8,6.7e-06]
[1719829420483,55.70216094,3480.9,3480.8,6.7e-06]
[1719829422299,55.70219625,3480.9,3480.8,6.7e-06]
[1719829422706,55.70231163,3480.9,3480.8,6.7e-06]
[1719829425439,54.04645524,3480.9,3480.8,6.7e-06]
[1719829425737,55.70231592,3480.9,3480.8,6.7e-06]
[1719829428627,54.04645524,3480.9,3480.8,6.7e-06]
[1719829428806,55.70231586,3480.9,3480.8,6.7e-06]
[1719829431852,54.04645524,3480.9,3480.8,6.7e-06]
[1719829432008,55.70236694,3480.9,3480.8,6.7e-06]
[1719829433101,60.39139594,3480.9,3480.8,6.7e-06]
[1719829435140,58.73548424,3480.9,3480.8,6.7e-06]
[1719829435312,60.39141969,3480.9,3480.8,6.7e-06]
[1719829435641,59.58340995,3480.9,3480.8,6.7e-06]
[1719829435855,60.39140995,3480.9,3480.8,6.7e-06]
[1719829437421,63.26422995,3480.9,3480.8,6.7e-06]
[1719829437642,66.06809357,3480.9,3480.8,6.7e-06]
[1719829437837,63.19527357,3480.9,3480.8,6.7e-06]
[1719829438050,66.06809357,3480.9,3480.8,6.7e-06]
[1719829438376,66.06828,3480.9,3480.8,6.7e-06]
[1719829439017,63.19546,3480.9,3480.8,6.7e-06]
[1719829439220,11.49456,3479.9,3479.8,2.3686]
[1719829439454,15.36623589,3479.9,3479.8,2.3686]
[1719829439625,15.62652615,3479.9,3479.8,2.3686]
[1719829439824,15.92615663,3479.9,3479.8,2.3686]
[1719829442550,15.92618802,3479.9,3479.8,2.3686]
[1719829443068,18.79982802,3479.9,3479.8,2.3686]
[1719829443247,8.6229,3479.1,3479.0,6.01134963]
[1719829443556,8.6229,3479.1,3478.4,6.01134963]
[1719829443557,2.8748,3478.5,3478.4,6.01134963]
[1719829443731,2.8748,3478.5,3478.4,6.69328551]
[1719829443936,2.93551776,3478.5,3478.4,6.69328551]
[1719829444335,5.81031776,3478.5,3478.4,0.68193588]
[1719829444535,2.87488,3478.4,3478.3,9.18e-06]
[1719829444737,5.74976,3478.4,3478.3,9.18e-06]
[1719829444933,5.81025765,3478.4,3478.3,9.18e-06]
[1719829445374,5.81025765,3478.4,3478.3,0.80800918]
[1719829446173,5.81025765,3478.4,3478.3,2.52240918]
[1719829446353,5.81025765,3478.4,3478.3,2.77509044]
[1719829447259,5.81025765,3478.4,3478.3,1.96709044]
[1719829454880,5.81025765,3478.4,3478.3,2.77509044]
[1719829455250,5.81025765,3478.4,3478.3,1.96709044]
[1719829455579,8.68513765,3478.4,3478.3,2.77509044]
[1719829455750,8.68513765,3478.4,3478.3,1.71440918]
[1719829457962,11.68513765,3478.4,3478.3,1.71440918]
[1719829459658,8.81025765,3478.4,3478.3,1.71440918]
[1719829473186,8.81025765,3478.4,3478.3,9.18e-06]
[1719829476431,11.68513765,3478.4,3478.3,9.18e-06]
[1719829477006,8.81025765,3478.4,3478.3,9.18e-06]
[1719829477326,11.68513765,3478.4,3478.3,9.18e-06]
[1719829477524,8.81025765,3478.4,3478.3,9.18e-06]
[1719829480209,11.68513765,3478.4,3478.3,9.18e-06]
[1719829490659,38.14073475,3478.4,3478.3,9.18e-06]
[1719829490842,14.37565,3478.1,3478.0,2.59e-06]
[1719829491024,17.37565,3478.1,3478.0,2.59e-06]
[1719829491222,17.43465659,3478.1,3478.0,2.59e-06]
[1719829491525,17.85594225,3478.1,3478.0,2.59e-06]
[1719829497032,18.66394225,3478.1,3478.0,2.59e-06]
[1719829497239,21.00324225,3478.1,3478.0,2.59e-06]
[1719829499329,21.75324225,3478.1,3478.0,2.59e-06]
[1719829499723,43.86549525,3478.1,3478.0,2.59e-06]
[1719829500039,20.4557008,3478.1,3478.0,2.59e-06]
[1719829501347,20.19524225,3478.1,3478.0,2.59e-06]
[1719829503537,14.98081225,3478.1,3478.0,2.59e-06]
[1719829504931,11.68439659,3478.1,3478.0,2.59e-06]
[1719829513498,5.80926659,3478.1,3478.0,0.80800259]
[1719829513659,2.93413659,3478.1,3478.0,0.80800259]
[1719829515985,0.05900659,3478.1,3478.0,0.80800259]
[1719829516298,0.05900659,3478.1,3478.0,1.06024285]
[1719829516603,0.05245223,3478.1,3478.0,1.06024285]
[1719829516965,0.05245223,3478.1,3478.0,2.8321423]
[1719829517697,0.05245223,3478.1,3478.0,2.77464285]
[1719829518867,5.87488,3478.4,3478.0,2.77464285]
[1719829519067,5.87488,3478.4,3478.3,2.5224]
[1719829519286,3.0,3478.4,3478.3,2.5224]
[1719829519600,2.8748,3478.5,3478.3,2.5224]
[1719829520104,2.87488,3478.4,3478.3,2.5224]
[1719829522912,5.74976,3478.4,3478.3,2.5224]
[1719829523113,2.87488,3478.4,3478.3,2.5224]
[1719829523283,2.87488,3478.4,3478.3,2.80296167]
[1719829528432,2.8748,3478.5,3478.3,2.80296167]
[1719829528600,2.87474,3478.6,3478.4,0.808]
[1719829528933,3.0,3478.5,3478.4,0.808]
[1719829529085,5.8748,3478.5,3478.4,1.08829617]
[1719829532444,5.8748,3478.5,3478.0,2.59e-06]
[1719829532445,2.875,3478.3,3478.0,2.59e-06]
[1719829532734,5.75003,3478.3,3478.2,0.808]
[1719829534044,2.87513,3478.1,3478.0,2.59e-06]
[1719829534323,2.92559842,3478.1,3478.0,0.80800259]
[1719829535809,2.92559842,3478.1,3478.0,2.59e-06]
[1719829536200,2.92559842,3478.1,3478.0,0.80800259]
[1719829536938,0.05046842,3478.1,3478.0,1.66712782]
[1719829537107,2.87511,3478.2,3478.0,1.66712782]
[1719829537433,2.87511,3478.2,3478.1,0.808]
[1719829538034,2.87491,3478.4,3478.1,0.808]
[1719829538220,3.0,3478.5,3478.4,1.7144]
[1719829538544,3.0,3478.7,3478.4,1.7144]
[1719829538743,5.87463,3478.7,3478.6,0.808]
[1719829539724,3.0,3478.7,3478.6,0.808]
[1719829539947,3.0,3478.8,3478.6,0.808]
[1719829540248,3.0,3478.8,3478.7,0.808]
[1719829540451,5.87455,3478.8,3478.7,0.808]
[1719829540949,3.0,3478.8,3478.7,0.808]
[1719829541447,3.0,3478.9,3478.7,0.808]
[1719829541835,5.87447,3478.9,3478.7,0.808]
[1719829543528,3.0,3478.8,3478.7,0.808]
[1719829547935,3.0,3479.0,3478.7,0.808]
[1719829548177,2.87439,3479.0,3478.9,0.808]
[1719829549226,2.92538431,3479.0,3478.9,0.808]
[1719829552931,0.05099431,3479.0,3478.9,0.808]
[1719829553233,3.0,3479.1,3478.9,0.808]
[1719829553456,0.05005431,3479.0,3478.5,0.05748689]
[1719829553628,0.05005431,3479.0,3478.9,0.808]
[1719829555474,2.92443431,3479.0,3478.9,0.808]
[1719829561447,5.79881431,3479.0,3478.9,0.808]
[1719829563244,2.87465,3478.7,3478.4,1.7144]
[1719829563449,2.87465,3478.7,3478.6,0.808]
[1719829564179,2.87485,3478.5,3478.3,6.01134963]
[1719829564383,2.87485,3478.5,3478.4,0.808]
[1719829565644,2.87485,3478.5,3478.3,6.01134963]
[1719829565880,2.87485,3478.5,3478.3,6.81934963]
[1719829566078,2.2692,3478.7,3478.3,6.81934963]
[1719829566079,5.74976,3478.4,3478.3,6.01134963]
[1719829566383,2.87513,3478.1,3478.0,2.59e-06]
[1719829566583,2.87513,3478.1,3478.0,0.80800259]
[1719829568358,2.87513,3478.1,3478.0,2.59e-06]
[1719829568569,2.87513,3478.1,3478.0,0.80800259]
[1719829572655,2.87498,3478.3,3478.0,0.80800259]
[1719829572888,2.87498,3478.3,3478.2,0.808]
[1719829579119,2.87475,3478.6,3478.2,0.808]
[1719829579265,0.05011921,3478.3,3478.1,1.7144]
[1719829579466,2.87458,3478.8,3478.2,0.808]
[1719829579467,2.8748,3478.5,3478.2,0.808]
[1719829579775,2.8748,3478.5,3478.1,1.7144]
[1719829580100,2.8748,3478.5,3478.4,0.808]
[1719829585185,2.87463,3478.7,3478.4,0.808]
[1719829585396,3.0,3478.6,3478.1,1.7144]
[1719829585595,3.0,3478.6,3478.5,0.808]
[1719829588015,2.87486,3478.5,3478.0,2.59e-06]
[1719829588213,2.87502,3478.3,3478.0,2.59e-06]
[1719829588519,2.87502,3478.3,3478.2,0.808]
[1719829592326,2.87502,3478.3,3478.0,2.59e-06]
[1719829592512,2.87502,3478.3,3478.2,0.808]
[1719829594183,2.92515228,3478.3,3478.2,0.808]
[1719829598695,2.92515228,3478.3,3478.1,0.22644026]
[1719829598889,2.87505,3478.2,3478.1,0.22644026]
[1719829599197,2.92516656,3478.2,3478.1,1.03444026]
[1719829599601,2.92516656,3478.2,3478.0,2.59e-06]
[1719829599602,5.75026,3478.1,3478.0,2.59e-06]
[1719829599809,5.75026,3478.1,3478.0,0.80800259]
[1719829600026,5.80032003,3478.1,3478.0,0.80800259]
[1719829611306,5.80032003,3478.1,3478.0,0.80800259]
[1719829614434,5.80032003,3478.1,3478.0,2.59e-06]
[1719829614619,5.80032003,3478.1,3478.0,0.80800259]
[1719829615023,5.80032003,3478.1,3478.0,2.59e-06]
[1719829615236,8.20222003,3478.1,3478.0,0.80800259]
[1719829616335,5.80032003,3478.1,3478.0,0.80800259]
[1719829620904,2.92519003,3478.1,3478.0,0.80800259]
[1719829621129,2.92519003,3478.1,3478.0,1.49568774]
[1719829622205,0.05006003,3478.1,3478.0,1.49568774]
[1719829622417,0.05006003,3478.1,3478.0,2.04568774]
[1719829622743,0.04824541,3478.1,3478.0,2.04568774]
[1719829622910,2.87496,3478.3,3478.0,2.04568774]
[1719829623243,2.87505,3478.2,3478.1,0.20456877]
[1719829623409,2.87505,3478.2,3478.1,1.01256877]
[1719829624244,2.92335194,3478.2,3478.1,1.01256877]
[1719829625041,2.92335194,3478.2,3478.1,0.20456877]
[1719829625264,5.79840194,3478.2,3478.1,0.808]
[1719829625573,2.87513,3478.1,3478.0,2.59e-06]
[1719829625718,2.87513,3478.1,3478.0,0.80800259]
[1719829626051,2.92339011,3478.1,3478.0,0.80800259]
[1719829626214,5.79852011,3478.1,3478.0,0.80800259]
[1719829630542,5.79852011,3478.1,3478.0,2.59e-06]
[1719829631924,11.08175011,3478.1,3478.0,2.59e-06]
[1719829634548,8.20662011,3478.1,3478.0,2.59e-06]
[1719829634752,8.20662011,3478.1,3478.0,0.80800259]
[1719829634925,5.79852011,3478.1,3478.0,0.80800259]
[1719829637938,2.92339011,3478.1,3478.0,0.80800259]
[1719829645356,8.05892011,3478.1,3478.0,2.59e-06]
[1719829646154,2.92339011,3478.1,3478.0,2.59e-06]
[1719829649071,5.79852011,3478.1,3478.0,2.59e-06]
[1719829651429,8.28582011,3478.1,3478.0,2.59e-06]
[1719829660475,11.16095011,3478.1,3478.0,2.59e-06]
[1719829660776,12.56455412,3478.1,3478.0,2.59e-06]
[1719829661561,11.16095011,3478.1,3478.0,2.59e-06]
[1719829662237,14.16095011,3478.1,3478.0,2.59e-06]
[1719829663784,11.28582011,3478.1,3478.0,2.59e-06]
[1719829664157,14.16095011,3478.1,3478.0,2.59e-06]
[1719829664690,11.28582011,3478.1,3478.0,2.59e-06]
[1719829670785,14.16095011,3478.1,3478.0,2.59e-06]
[1719829676980,14.15295011,3478.1,3478.0,2.59e-06]
[1719829681409,17.02808011,3478.1,3478.0,2.59e-06]
[1719829681613,18.44337512,3478.1,3478.0,2.59e-06]
[1719829681764,19.25137512,3478.1,3478.0,2.59e-06]
[1719829682092,19.81023315,3478.1,3478.0,2.59e-06]
[1719829683658,19.54968878,3478.1,3478.0,2.59e-06]